bitfinex-derivatives/quotes_ETHF0:USTF0_20240930
["timestamp","ask_amount","ask_price","bid_price","bid_amount"]
[1727690896074,0.3921,2606.5,2605.9,0.38367]
[1727690896267,0.7903,2606.5,2605.9,0.38368]
[1727690896770,0.7903,2606.5,2605.9,3.2078]
[1727690896971,0.3982,2606.5,2606.0,0.38366]
[1727690897172,0.3982,2606.5,2606.2,0.38362]
[1727690897477,2.95,2606.9,2606.4,0.3836]
[1727690897675,2.95,2606.9,2606.2,3.2078]
[1727690897676,2.95,2606.6,2606.2,3.2078]
[1727690897873,2.95,2606.6,2605.8,3.5926]
[1727690898366,3.7349,2606.5,2605.8,3.9763]
[1727690898770,3.7349,2606.5,2605.9,0.38368]
[1727690899175,3.7349,2606.5,2605.8,3.5926]
[1727690899176,3.7349,2606.5,2606.0,0.38366]
[1727690899372,3.7349,2606.5,2605.8,3.5926]
[1727690899573,0.3956,2606.5,2606.3,0.38362]
[1727690899971,0.3956,2606.5,2606.2,0.38364]
[1727690900167,3.335,2606.9,2605.9,3.2078]
[1727690900471,3.335,2606.9,2606.2,3.2078]
[1727690900965,3.335,2606.9,2606.8,0.38355]
[1727690900966,0.385,2606.9,2606.8,0.38355]
[1727690901165,0.385,2606.9,2606.5,3.2078]
[1727690901572,0.385,2606.9,2606.6,0.3708]
[1727690901769,0.385,2606.9,2606.7,0.38356]
[1727690901965,3.335,2606.9,2606.3,0.38362]
[1727690902263,3.335,2606.9,2606.3,3.59141]
[1727690902468,3.335,2606.9,2606.2,0.38364]
[1727690902469,0.38356,2606.8,2606.2,0.38364]
[1727690903068,3.335,2606.9,2606.0,3.2078]
[1727690903277,3.335,2606.9,2606.4,0.3836]
[1727690903576,3.335,2606.9,2606.5,0.38358]
[1727690903768,3.2078,2607.8,2606.7,3.2078]
[1727690903969,3.2078,2607.8,2606.1,0.95912]
[1727690903970,0.3868,2607.5,2607.1,0.3835]
[1727690904276,0.3868,2607.5,2606.8,0.4013]
[1727690904277,3.3368,2607.5,2606.8,0.4013]
[1727690904469,3.3368,2607.5,2607.0,0.38351]
[1727690904668,3.3368,2607.5,2607.1,0.3835]
[1727690904872,3.3368,2607.5,2607.0,3.59131]
[1727690905177,0.3868,2607.5,2607.4,0.38346]
[1727690905477,0.377,2607.7,2607.3,3.59127]
[1727690905679,0.7638,2607.7,2607.0,3.2078]
[1727690905973,0.3868,2607.7,2607.5,0.38344]
[1727690906768,0.4012,2608.1,2607.7,0.38342]
[1727690907065,1.16737,2608.1,2607.6,0.38342]
[1727690907269,1.16737,2608.1,2607.5,0.4028]
[1727690907270,0.784,2608.1,2607.5,0.4028]
[1727690907472,0.38338,2608.0,2607.5,0.78624]
[1727690907770,1.16737,2608.1,2607.5,0.4028]
[1727690908071,0.784,2608.1,2607.5,0.4028]
[1727690908472,0.38341,2607.8,2607.4,3.59126]
[1727690908675,0.38341,2607.8,2607.4,0.38346]
[1727690908868,2.95,2607.9,2607.1,4.3659]
[1727690909068,2.95,2607.6,2607.1,3.2078]
[1727690909370,0.38347,2607.4,2607.1,3.2078]
[1727690910671,0.7611,2607.5,2607.1,3.5913]
[1727690910874,0.7611,2607.5,2607.2,0.38348]
[1727690911389,0.7611,2607.5,2607.1,3.2078]
[1727690911569,1.14456,2607.5,2607.1,3.5913]
[1727690911769,0.7611,2607.5,2607.1,3.2078]
[1727690911973,0.7611,2607.5,2606.8,3.2078]
[1727690912172,0.3835,2607.2,2606.9,0.38353]
[1727690912369,0.7611,2607.5,2606.9,0.38353]
[1727690912573,0.7611,2607.5,2606.7,0.7777]
[1727690912776,0.7611,2607.5,2606.9,0.38353]
[1727690912777,0.38348,2607.3,2606.9,0.38353]
[1727690912975,0.7611,2607.5,2606.9,0.38353]
[1727690913173,0.38349,2607.3,2606.9,0.38353]
[1727690913479,0.7611,2607.5,2606.7,0.7777]
[1727690913671,0.7611,2607.5,2606.9,0.38352]
[1727690913880,0.3835,2607.2,2606.9,0.38352]
[1727690914177,0.38349,2607.2,2606.9,0.38352]
[1727690915170,0.38349,2607.3,2607.0,0.38351]
[1727690915371,0.7611,2607.5,2606.7,0.7777]
[1727690915572,0.7611,2607.5,2606.8,3.2078]
[1727690915877,0.7611,2607.5,2607.0,0.38351]
[1727690916178,0.3835,2607.2,2606.9,0.38352]
[1727690916568,0.3835,2607.2,2606.9,0.38353]
[1727690916775,0.38349,2607.3,2607.0,0.38351]
[1727690916975,0.38351,2607.1,2606.8,3.59134]
[1727690917175,0.95866,2607.4,2606.8,3.2078]
[1727690917481,0.7611,2607.5,2606.7,0.7777]
[1727690917676,0.3835,2607.2,2606.9,0.38353]
[1727690917974,0.3835,2607.2,2606.7,0.7777]
[1727690918277,0.95873,2607.3,2606.8,0.38354]
[1727690918475,0.95873,2607.3,2606.7,0.7777]
[1727690918773,0.95873,2607.3,2606.5,3.2078]
[1727690918774,0.38357,2606.7,2606.5,3.2078]
[1727690918978,0.38357,2606.7,2605.7,7.79825]
[1727690918979,3.72518,2606.6,2606.3,4.51362]
[1727690919172,0.38363,2606.3,2605.8,0.38369]
[1727690919373,2.95,2606.1,2605.7,7.3378]
[1727690919579,2.95,2606.1,2605.7,3.2078]
[1727690919967,2.95,2606.1,2605.3,0.3758]
[1727690919968,3.2078,2606.3,2605.5,3.2078]
[1727690920271,2.95,2605.7,2605.3,0.3758]
[1727690920481,2.95,2606.0,2605.3,0.3758]
[1727690920778,2.95,2606.3,2605.4,3.2078]
[1727690921184,6.1578,2606.3,2605.3,0.3758]
[1727690921673,6.54143,2606.3,2605.3,0.3758]
[1727690921875,6.54142,2606.3,2605.3,0.3758]
[1727690922068,6.1578,2606.3,2605.3,0.3758]
[1727690922476,6.54143,2606.3,2605.3,0.3758]
[1727690922775,0.38364,2606.2,2605.3,0.3758]
[1727690923183,2.95,2606.0,2605.3,0.3758]
[1727690923382,0.3666,2605.9,2605.3,0.3758]
[1727690923580,0.3666,2605.9,2605.4,3.2078]
[1727690924480,0.3666,2605.9,2605.2,0.38378]
[1727690924682,0.3666,2605.9,2605.2,0.3844]
[1727690924879,0.3666,2605.9,2605.1,3.2078]
[1727690925075,0.3991,2605.8,2605.1,3.5916]
[1727690925280,0.3991,2605.8,2605.2,0.3844]
[1727690925488,0.3666,2605.9,2605.3,0.38377]
[1727690925776,0.3666,2605.9,2605.4,3.2078]
[1727690926282,0.3666,2605.9,2605.2,0.7832]
[1727690926679,0.7657,2605.9,2605.2,1.16698]
[1727690926983,6.1578,2606.3,2605.5,0.38373]
[1727690927186,6.1578,2606.3,2605.4,3.59155]
[1727690927187,2.95,2606.3,2605.4,3.59155]
[1727690927379,2.95,2606.3,2605.5,0.38373]
[1727690927577,2.95,2606.3,2605.4,3.59155]
[1727690927775,0.38364,2606.2,2605.4,3.2078]
[1727690928075,2.95,2606.0,2605.2,0.7832]
[1727690928391,0.7701,2605.9,2605.2,0.7832]
[1727690928577,1.15378,2605.9,2605.2,0.7832]
[1727690928781,0.7701,2605.9,2605.2,0.7832]
[1727690929379,0.3837,2605.8,2605.2,0.7832]
[1727690929589,0.38371,2605.8,2605.2,0.7832]
[1727690930081,0.7701,2605.9,2605.4,0.38375]
[1727690930279,2.95,2606.0,2605.3,0.3852]
[1727690930476,6.1578,2606.0,2605.2,0.7832]
[1727690930672,6.54148,2606.0,2605.2,1.16698]
[1727690931077,6.1578,2606.0,2605.2,1.16698]
[1727690931277,6.1578,2606.0,2605.2,0.7832]
[1727690931480,0.3837,2605.8,2605.2,0.7832]
[1727690931680,0.76099,2605.9,2605.2,1.16698]
[1727690931879,0.3773,2605.9,2605.3,0.38376]
[1727690932188,0.3773,2605.9,2605.2,0.7832]
[1727690932885,0.38371,2605.8,2605.2,1.16698]
[1727690933589,0.76099,2605.9,2605.3,0.38377]
[1727690933790,0.3773,2605.9,2605.2,0.7832]
[1727690934288,0.3837,2605.8,2605.2,1.16698]
[1727690934492,3.2078,2606.1,2605.5,0.38373]
[1727690934493,0.38366,2606.1,2605.5,0.38373]
[1727690934794,0.76205,2606.2,2605.6,0.38372]
[1727690935093,0.38366,2606.1,2605.6,0.38372]
[1727690935794,0.38367,2606.0,2605.5,0.38373]
[1727690936383,0.3784,2606.2,2605.4,3.2078]
[1727690936787,0.38369,2605.9,2605.4,3.59154]
[1727690936982,0.3837,2605.8,2605.4,3.59154]
[1727690937188,0.38369,2605.9,2605.4,3.59154]
[1727690937388,0.3784,2606.2,2605.4,3.2078]
[1727690937692,0.38373,2605.6,2605.4,3.2078]
[1727690938088,6.1578,2606.0,2605.4,3.2078]
[1727690938297,0.38372,2605.7,2605.4,3.2078]
[1727690938795,6.1578,2606.0,2605.4,3.2078]
[1727690938996,0.38371,2605.7,2605.4,3.2078]
[1727690939289,0.95923,2605.9,2605.4,3.2078]
[1727690939492,0.38373,2605.6,2605.4,3.2078]
[1727690939794,0.38372,2605.7,2605.4,3.2078]
[1727690939990,0.38373,2605.6,2605.4,3.2078]
[1727690940689,3.33374,2605.5,2605.1,0.3838]
[1727690940890,3.33374,2605.5,2605.0,3.2078]
[1727690940891,3.70814,2605.5,2605.0,3.2078]
[1727690941090,0.3744,2605.5,2605.2,0.38378]
[1727690941297,3.3173,2605.8,2605.3,0.38376]
[1727690941495,0.38372,2605.7,2605.4,0.759]
[1727690941791,3.3173,2605.8,2605.4,0.759]
[1727690941998,0.38372,2605.7,2605.4,0.759]
[1727690942198,3.3173,2605.8,2605.4,0.759]
[1727690942384,0.3744,2606.2,2605.9,0.38368]
[1727690942594,0.38361,2606.4,2605.6,3.2078]
[1727690942798,4.27515,2606.7,2606.1,0.38365]
[1727690942799,3.7198,2606.7,2606.1,0.38365]
[1727690943091,0.3836,2606.5,2606.2,0.4039]
[1727690943292,3.7198,2606.7,2606.2,0.4039]
[1727690943491,0.38355,2606.9,2606.4,0.3836]
[1727690943693,0.38351,2607.1,2606.3,0.376]
[1727690943892,0.38351,2607.1,2606.5,0.38359]
[1727690944092,6.1578,2607.2,2606.3,0.376]
[1727690944405,0.7682,2607.5,2606.6,3.2078]
[1727690944406,6.1578,2607.5,2606.6,3.2078]
[1727690944587,3.2078,2607.5,2607.0,0.38352]
[1727690944788,2.95,2607.1,2606.1,3.2078]
[1727690945092,0.9587,2607.4,2606.7,3.2078]
[1727690945093,3.7556,2607.4,2606.7,3.2078]
[1727690945296,2.95,2607.4,2606.7,3.2078]
[1727690945595,3.2078,2607.5,2607.1,3.5913]
[1727690945896,0.38343,2607.7,2607.1,3.5913]
[1727690946199,2.95,2607.8,2607.1,3.2078]
[1727690946506,0.38344,2607.6,2607.1,3.2078]
[1727690946884,2.95,2607.8,2607.1,3.2078]
[1727690947290,2.95,2607.4,2606.5,3.2078]
[1727690947595,3.33353,2607.0,2606.5,3.2078]
[1727690948092,2.95,2607.0,2606.5,3.2078]
[1727690948291,2.95,2607.0,2606.5,3.59139]
[1727690948999,2.95,2607.0,2606.5,3.2078]
[1727690949000,0.38354,2606.9,2606.5,3.2078]
[1727690949293,0.4046,2607.2,2606.2,0.3653]
[1727690949294,2.95,2606.7,2606.2,0.3653]
[1727690949504,2.95,2606.7,2606.2,0.74893]
[1727690949685,2.95,2606.7,2606.2,0.3653]
[1727690949885,3.33357,2606.7,2606.2,0.3653]
[1727690950698,3.33357,2606.7,2606.3,0.38362]
[1727690950699,2.95,2606.7,2606.3,0.38362]
[1727690950887,2.95,2606.7,2606.4,0.3836]
[1727690951091,3.59125,2607.5,2606.9,0.38353]
[1727690951291,0.38344,2607.6,2607.0,0.38351]
[1727690951491,2.95,2607.7,2607.0,0.38351]
[1727690951701,2.95,2607.7,2606.9,0.4013]
[1727690951886,2.95,2607.7,2607.2,0.38349]
[1727690952087,3.33342,2607.7,2607.2,0.38349]
[1727690952292,3.33342,2607.7,2607.1,3.2078]
[1727690952293,2.95,2607.7,2607.1,3.2078]
[1727690952498,2.95,2607.7,2607.3,0.38347]
[1727690952698,3.33342,2607.7,2607.2,0.38349]
[1727690953097,2.95,2607.7,2607.1,3.2078]
[1727690953297,2.95,2607.7,2607.1,3.5913]
[1727690953490,3.33343,2607.7,2607.1,3.5913]
[1727690953787,3.33343,2607.7,2607.2,0.38348]
[1727690953992,2.95,2607.7,2607.1,3.2078]
[1727690954191,3.9825,2607.9,2607.2,0.38349]
[1727690954192,0.38341,2607.8,2607.2,0.38349]
[1727690954398,0.38342,2607.7,2607.2,0.38349]
[1727690954694,3.9825,2607.9,2607.1,3.2078]
[1727690954695,3.609,2607.9,2607.1,3.2078]
[1727690954997,4.56749,2607.9,2607.1,0.3835]
[1727690955193,0.38343,2607.6,2607.1,0.3835]
[1727690955397,0.38342,2607.8,2607.2,0.38348]
[1727690955901,0.38349,2607.2,2606.9,0.4013]
[1727690956103,2.95,2607.4,2606.9,0.4013]
[1727690956295,0.38344,2607.6,2607.0,0.38351]
[1727690956496,0.38344,2607.6,2607.1,0.3835]
[1727690956993,2.95,2607.7,2607.0,3.2078]
[1727690957395,0.3835,2607.2,2606.9,0.4013]
[1727690957694,0.38353,2607.0,2606.6,3.2078]
[1727690957896,3.90867,2607.4,2606.6,3.2078]
[1727690957897,3.3521,2607.1,2606.6,3.2078]
[1727690958097,0.95881,2607.0,2606.3,3.2078]
[1727690958303,3.3521,2607.1,2606.3,3.2078]
[1727690958304,0.95884,2606.9,2606.3,3.2078]
[1727690958602,0.38361,2606.4,2606.3,3.2078]
[1727690958794,0.95892,2606.7,2606.0,3.2078]
[1727690958992,0.4042,2606.7,2605.7,3.2078]
[1727690959202,0.38361,2606.4,2605.7,3.2078]
[1727690959415,2.95,2606.1,2605.7,3.2078]
[1727690959700,0.38371,2605.7,2604.9,0.7677]
[1727690959900,0.38372,2605.7,2604.9,0.7677]
[1727690960095,3.3337,2605.8,2604.9,0.7677]
[1727690960300,0.38371,2605.7,2605.0,0.3838]
[1727690960497,0.38371,2605.7,2604.9,0.75892]
[1727690960705,2.95,2605.8,2604.9,0.75892]
[1727690960891,0.38372,2605.7,2604.9,0.75892]
[1727690961098,0.38372,2605.7,2605.0,0.38381]
[1727690961292,2.95,2605.8,2604.9,0.3751]
[1727690961604,6.1578,2605.8,2604.7,3.2078]
[1727690961900,0.76142,2605.7,2605.0,0.38381]
[1727690962304,0.38373,2605.6,2605.0,0.38381]
[1727690962498,0.76142,2605.7,2605.1,0.3838]
[1727690962700,0.4042,2606.0,2605.0,3.2078]
[1727690962896,0.4042,2606.0,2605.3,0.38377]
[1727690962897,0.38368,2606.0,2605.3,0.38377]
[1727690963097,0.38374,2605.6,2605.1,0.3646]
[1727690963300,3.2078,2606.1,2605.1,0.3646]
[1727690963505,0.38369,2605.9,2605.1,0.7484]
[1727690963699,2.95,2606.0,2605.1,0.3646]
[1727690963896,0.38376,2605.5,2604.8,3.2078]
[1727690964198,6.1578,2605.6,2604.8,3.2078]
[1727690964406,0.38381,2605.1,2604.8,3.2078]
[1727690964605,2.95,2605.3,2604.8,3.2078]
[1727690965104,0.3725,2605.4,2604.8,3.59164]
[1727690965600,0.75627,2605.4,2604.8,3.59164]
[1727690965807,0.75626,2605.4,2604.8,3.2078]
[1727690965996,0.38372,2605.7,2605.1,0.3838]
[1727690966198,3.2078,2605.9,2604.8,3.2078]
[1727690966199,2.95,2605.3,2604.8,3.2078]
[1727690966400,3.2078,2605.9,2604.2,0.3775]
[1727690966401,3.2078,2605.9,2605.1,3.2078]
[1727690966600,6.1578,2605.9,2605.1,3.2078]
[1727690967000,0.38374,2605.6,2605.1,3.2078]
[1727690967307,2.95,2605.3,2605.1,3.2078]
[1727690967508,3.33378,2605.3,2605.1,3.2078]
[1727690967806,3.33378,2605.3,2604.2,0.3775]
[1727690967807,7.0462,2605.2,2604.5,3.2078]
[1727690968013,3.6029,2605.2,2604.5,3.2078]
[1727690968305,2.95,2605.0,2604.5,3.2078]
[1727690968507,2.95,2604.7,2604.1,3.591]
[1727690968709,3.2078,2604.9,2604.1,3.591]
[1727690969006,0.3838,2605.1,2604.2,0.38393]
[1727690969202,3.6029,2605.2,2604.1,3.591]
[1727690969409,3.6029,2605.2,2604.5,3.2078]
[1727690969610,3.98669,2605.2,2604.5,3.2078]
[1727690970198,2.95,2605.1,2604.1,0.3832]
[1727690970406,0.38384,2604.8,2604.1,0.3832]
[1727690970706,3.2078,2604.9,2603.9,3.5914]
[1727690970898,0.3838,2605.1,2604.2,3.59172]
[1727690971099,3.6029,2605.2,2604.2,3.2078]
[1727690971301,3.6029,2605.2,2604.2,3.59173]
[1727690971508,3.6029,2605.2,2604.2,3.2078]
[1727690971708,0.38383,2604.9,2604.2,3.2078]
[1727690971902,3.6029,2605.2,2604.2,3.2078]
[1727690972206,3.6029,2605.2,2604.5,3.59169]
[1727690972411,0.3951,2605.2,2604.5,3.2078]
[1727690972601,0.7921,2605.5,2604.6,0.38387]
[1727690972909,0.38378,2605.3,2604.7,0.4026]
[1727690973107,0.7921,2605.5,2604.7,0.4026]
[1727690973303,0.38378,2605.3,2604.7,0.4026]
[1727690973507,0.38376,2605.4,2604.7,0.78645]
[1727690974012,0.7921,2605.5,2604.7,0.4026]
[1727690974198,6.1578,2605.7,2604.7,0.4026]
[1727690974199,3.2078,2605.7,2604.7,0.4026]
[1727690974407,3.59147,2606.0,2605.3,3.59156]
[1727690974604,3.59147,2606.0,2605.3,3.2078]
[1727690974605,3.2078,2606.0,2605.3,3.2078]
[1727690974800,1.1478,2606.3,2604.8,4.67801855]
[1727690974801,0.3838,2605.2,2604.8,0.3811]
[1727690975003,2.95,2605.4,2604.7,0.4026]
[1727690975211,0.38384,2604.8,2604.2,3.59172]
[1727690975505,0.38384,2604.8,2603.5,5.69601288]
[1727690975506,2.95,2605.0,2603.9,3.579]
[1727690975707,2.95,2605.0,2604.0,0.38396]
[1727690975913,0.38386,2604.7,2604.1,0.38394]
[1727690976103,0.3703,2604.9,2603.9,3.579]
[1727690976305,0.38387,2604.6,2604.0,0.38395]
[1727690976503,0.3917,2604.8,2603.9,0.3712]
[1727690976504,2.95,2604.7,2603.9,0.3712]
[1727690976703,0.3917,2604.8,2604.0,0.38395]
[1727690976704,0.38387,2604.6,2604.0,0.38395]
[1727690976908,0.3917,2604.8,2603.9,3.579]
[1727690977103,0.3917,2604.8,2604.3,0.38391]
[1727690977714,0.3917,2604.8,2604.4,0.3839]
[1727690978015,0.3917,2604.8,2604.5,0.38389]
[1727690978305,0.3917,2604.8,2604.5,3.2078]
[1727690979810,0.38376,2605.4,2604.8,0.38384]
[1727690980005,0.375,2605.5,2605.0,0.3838]
[1727690980209,3.7505,2606.0,2604.9,0.3774]
[1727690980409,0.38374,2605.5,2604.9,0.76122]
[1727690980809,3.2078,2605.8,2604.9,0.76122]
[1727690981003,0.38374,2605.5,2604.9,0.3774]
[1727690981202,0.38376,2605.4,2604.9,0.3774]
[1727690981407,3.2078,2605.8,2605.0,0.38381]
[1727690981707,0.38373,2605.6,2605.0,0.38381]
[1727690982018,3.2078,2605.8,2604.9,0.3774]
[1727690982213,0.38373,2605.6,2604.9,0.3774]
[1727690982707,0.38373,2605.6,2605.0,0.38381]
[1727690982907,0.3837,2605.8,2605.0,0.38381]
[1727690983104,0.38373,2605.6,2605.0,0.38381]
[1727690983308,3.2078,2605.7,2604.9,0.3774]
[1727690983612,0.38375,2605.5,2604.9,0.76122]
[1727690983909,6.1578,2605.7,2604.8,3.2078]
[1727690984116,0.3976,2605.4,2604.9,0.38382]
[1727690984417,0.404,2605.6,2605.2,0.38378]
[1727690985314,0.404,2605.6,2604.6,0.3742]
[1727690985315,0.38374,2605.6,2605.1,3.2078]
[1727690985615,0.4041,2605.9,2605.1,3.2078]
[1727690985912,0.38371,2605.8,2605.3,0.38377]
[1727690986414,0.4041,2605.9,2605.4,0.38374]
[1727690986415,0.78779,2605.9,2605.4,0.38374]
[1727690986615,0.4041,2605.9,2605.4,0.38375]
[1727690986822,0.38373,2605.6,2605.1,0.38379]
[1727690987012,3.2078,2605.7,2605.0,0.38381]
[1727690987213,6.1578,2605.7,2604.8,0.3919]
[1727690987409,0.38379,2605.2,2604.8,0.38384]
[1727690987709,0.38382,2605.0,2604.7,0.38385]
[1727690988016,3.2078,2605.4,2604.6,0.3742]
[1727690988207,0.38382,2605.0,2604.6,0.75807]
[1727690988402,1.35345,2605.3,2604.6,0.3742]
[1727690988716,1.35345,2605.3,2604.4,0.75919]
[1727690988717,0.38385,2604.8,2604.4,0.75919]
[1727690988902,0.3917,2605.2,2604.4,0.75919]
[1727690989100,0.38385,2604.8,2604.4,0.3839]
[1727690989305,0.38387,2604.7,2604.3,0.38391]
[1727690990005,3.2078,2605.1,2604.6,0.38387]
[1727690990205,3.59147,2606.0,2605.6,0.38372]
[1727690990415,1.1868,2606.3,2605.3,3.2078]
[1727690990716,0.38372,2605.7,2605.3,3.59156]
[1727690990912,0.38373,2605.6,2605.3,3.2078]
[1727690991120,0.38371,2605.7,2605.1,1.14169]
[1727690991411,0.38379,2605.2,2604.8,0.78453]
[1727690991614,0.38374,2605.5,2605.0,0.38381]
[1727690991813,0.38375,2605.5,2605.1,0.38379]
[1727690992113,0.38375,2605.5,2604.9,3.2078]
[1727690992114,3.2078,2605.5,2604.6,3.5839]
[1727690992617,0.38378,2605.3,2604.9,0.38382]
[1727690993012,3.2078,2605.5,2604.9,0.38382]
[1727690993211,3.2078,2605.2,2604.6,3.59167]
[1727690993511,0.38385,2604.8,2604.6,3.2078]
[1727690993718,0.38384,2604.9,2604.6,3.59167]
[1727690993912,0.3777,2605.0,2604.9,0.38383]
[1727690994312,0.38378,2605.3,2604.9,0.38382]
[1727690994511,0.3772,2605.4,2604.6,3.2078]
[1727690994712,0.3772,2605.4,2604.9,3.2078]
[1727690994926,3.9704,2605.8,2605.5,0.38373]
[1727690995423,3.5867,2605.8,2605.2,3.2078]
[1727690995621,0.3789,2605.8,2605.2,3.2078]
[1727690995815,0.38372,2605.7,2605.2,3.2078]
[1727690996122,0.7626,2605.8,2605.4,0.38375]
[1727690996417,0.38373,2605.6,2605.3,0.38376]
[1727690996620,0.3789,2605.8,2605.2,3.2078]
[1727690996823,0.38372,2605.7,2605.3,0.38376]
[1727690997025,0.38373,2605.6,2605.3,0.38377]
[1727690997225,0.38374,2605.6,2605.2,3.59158]
[1727690997729,0.3789,2605.8,2605.3,0.38377]
[1727690998022,0.38374,2605.6,2605.2,3.2078]
[1727690998225,0.38373,2605.6,2605.3,0.38376]
[1727690998725,2.95,2606.2,2605.3,0.38376]
[1727690998726,3.2078,2606.5,2605.5,3.2078]
[1727690998920,0.38364,2606.2,2605.8,3.59149]
[1727690999226,3.2078,2606.5,2605.8,3.2078]
[1727690999523,0.3688,2606.1,2606.0,0.38367]
[1727691000125,0.38362,2606.4,2606.0,0.38367]
[1727691000322,0.38363,2606.3,2605.9,0.38367]
[1727691000629,0.38364,2606.2,2605.9,0.38367]
[1727691000828,3.2078,2606.5,2605.6,3.59152]
[1727691000829,0.38368,2605.9,2605.6,3.59152]
[1727691001134,0.38372,2605.7,2605.4,0.38375]
[1727691001327,0.3833,2605.8,2605.4,3.2078]
[1727691001640,0.3833,2605.8,2605.6,0.38372]
[1727691001927,3.41648093,2606.6,2605.7,6.1578]
[1727691002127,0.3833,2607.0,2606.1,3.2078]
[1727691002318,1.34213,2607.0,2606.2,0.3721]
[1727691002522,0.38358,2606.7,2606.2,0.3721]
[1727691002715,0.38358,2606.7,2606.1,3.2078]
[1727691002716,0.3718,2606.9,2606.1,3.2078]
[1727691002921,0.38361,2606.4,2606.1,3.59144]
[1727691003119,0.38361,2606.4,2606.1,3.2078]
[1727691003120,0.38362,2606.4,2606.1,3.2078]
[1727691003325,0.38364,2606.2,2606.1,3.2078]
[1727691003927,0.78793,2606.3,2606.1,3.2078]
[1727691004328,0.4043,2606.3,2606.1,3.2078]
[1727691004828,0.4043,2606.3,2606.1,3.59145]
[1727691005424,0.38364,2606.2,2605.8,3.2078]
[1727691005628,0.38364,2606.2,2605.9,0.38368]
[1727691005820,0.38365,2606.1,2605.8,0.38369]
[1727691006125,0.3789,2606.2,2605.8,3.2078]
[1727691006329,0.4043,2606.3,2605.8,3.2078]
[1727691006518,7.97670093,2607.0,2606.1,3.2078]
[1727691006519,0.3906,2606.8,2606.1,3.2078]
[1727691006718,0.77416,2606.8,2606.5,3.59139]
[1727691006917,0.3906,2606.8,2606.7,0.38356]
[1727691007133,0.77415,2606.8,2606.5,3.59138]
[1727691007430,0.3906,2606.8,2606.5,3.2078]
[1727691007738,0.38356,2606.7,2606.5,3.2078]
[1727691007922,0.77416,2606.8,2606.5,3.59138]
[1727691008127,0.77416,2606.8,2606.7,0.38356]
[1727691008128,0.3906,2606.8,2606.7,0.38356]
[1727691008428,0.3906,2606.8,2606.6,0.38358]
[1727691008726,4.16652,2607.3,2606.5,3.2078]
[1727691008727,3.2078,2607.3,2606.5,3.2078]
[1727691008928,0.38348,2607.3,2606.8,3.2078]
[1727691009229,0.78696,2607.4,2607.1,0.3835]
[1727691009525,0.38348,2607.3,2606.8,3.2078]
[1727691009730,0.4035,2607.4,2606.8,3.2078]
[1727691010123,0.4035,2607.4,2606.9,0.38353]
[1727691010323,0.4035,2607.4,2606.4,3.2078]
[1727691010324,3.6113,2607.4,2606.4,3.2078]
[1727691010533,0.95873,2607.2,2606.2,0.402]
[1727691010736,3.6055,2607.1,2606.2,0.402]
[1727691010926,0.38364,2606.2,2606.1,3.2078]
[1727691011127,0.38367,2606.0,2605.9,3.2078]
[1727691012027,3.8376,2606.0,2605.5,3.5778]
[1727691012227,0.3838,2605.9,2605.2,3.591]
[1727691012433,0.3838,2605.9,2605.4,0.38375]
[1727691012434,0.38371,2605.8,2605.4,0.38375]
[1727691012733,0.76749,2605.9,2605.4,0.38374]
[1727691012936,0.76749,2605.9,2605.2,3.591]
[1727691013328,0.3838,2605.9,2605.2,3.591]
[1727691013636,0.3838,2605.9,2605.6,0.38372]
[1727691014128,0.3838,2605.9,2605.5,3.2078]
[1727691014631,0.3838,2605.9,2605.5,3.59153]
[1727691014837,0.3838,2605.9,2605.6,0.38372]
[1727691015838,0.38362,2606.4,2605.6,3.8376]
[1727691016028,3.5757,2606.5,2605.9,0.38368]
[1727691016227,0.38356,2606.7,2605.9,0.38368]
[1727691016536,0.366,2606.8,2606.1,3.2078]
[1727691016723,0.366,2606.8,2606.6,0.38357]
[1727691017031,0.7329,2607.0,2606.4,3.2078]
[1727691017032,0.3679,2607.0,2606.4,3.2078]
[1727691017337,0.38348,2607.3,2606.7,3.2078]
[1727691017534,0.38348,2607.3,2606.8,0.4027]
[1727691017731,3.2078,2607.4,2606.7,3.2078]
[1727691017943,3.2078,2607.4,2606.3,3.2078]
[1727691018235,0.38358,2606.6,2606.3,3.2078]
[1727691018635,0.38355,2606.8,2606.3,3.59142]
[1727691018829,3.2078,2607.4,2606.3,3.2078]
[1727691019032,0.38351,2607.1,2606.3,3.2078]
[1727691019234,0.38351,2607.1,2606.6,0.38358]
[1727691019447,0.38353,2607.0,2606.5,0.38359]
[1727691019738,0.38357,2606.7,2606.3,3.2078]
[1727691020133,0.95872,2607.3,2606.2,0.78633]
[1727691020134,0.38359,2606.6,2606.2,0.4027]
[1727691020438,4.16659,2607.1,2606.2,0.38363]
[1727691020439,3.2078,2607.1,2606.2,0.38363]
[1727691020635,4.16658,2607.1,2606.3,0.38362]
[1727691020838,3.2078,2607.1,2606.7,0.38356]
[1727691021036,3.2078,2607.1,2606.8,0.38354]
[1727691021343,0.38347,2607.4,2606.9,0.38353]
[1727691021631,0.7339,2607.5,2606.7,3.2078]
[1727691021845,0.7339,2607.5,2607.1,0.3835]
[1727691022136,0.7339,2607.5,2607.0,0.38351]
[1727691022137,0.38346,2607.4,2607.0,0.38351]